bitfinex/quotes_ETHUSD_20240811
["timestamp","ask_amount","ask_price","bid_price","bid_amount"]
[1723358820149,2.62513,2666.6,2666.0,2.62563]
[1723358820349,2.62513,2666.6,2666.0,2.70063687]
[1723358820855,2.62513,2666.6,2666.0,0.07500687]
[1723358821058,3.150133,2666.6,2665.9,7.91593]
[1723358821252,2.62516,2666.5,2665.9,7.91593]
[1723358821954,3.150133,2666.6,2665.9,7.91593]
[1723358822161,3.150133,2666.6,2666.0,2.62564]
[1723358822369,3.150133,2666.6,2666.0,2.70064695]
[1723358822762,0.525003,2666.6,2666.0,2.70059695]
[1723358822965,2.6247,2667.0,2666.3,2.62533]
[1723358823175,2.6245,2667.2,2666.4,4.95120059]
[1723358823372,2.62444,2667.3,2666.5,2.62507]
[1723358823677,2.87066,2667.3,2666.6,2.70004311]
[1723358823887,2.62449,2667.2,2666.6,2.70004311]
[1723358824377,0.24622,2667.3,2666.7,2.62494]
[1723358824563,2.4622,2667.4,2666.7,2.62494]
[1723358825265,2.62446,2667.3,2666.7,2.62494]
[1723358825467,5.24892,2667.3,2666.7,2.62494]
[1723358825672,2.62446,2667.3,2666.6,0.487607]
[1723358825870,2.62448,2667.2,2666.6,3.112637]
[1723358826447,2.62446,2667.3,2666.6,3.112637]
[1723358826655,2.62418,2667.5,2666.8,2.62483]
[1723358826975,2.62418,2667.5,2666.9,2.62475]
[1723358827158,2.62418,2667.5,2666.9,2.69973392]
[1723358827562,2.62418,2667.5,2666.9,0.07498392]
[1723358827765,2.62437,2667.3,2666.9,0.07498392]
[1723358827961,2.62437,2667.3,2666.4,2.251]
[1723358827962,2.62461,2667.1,2666.4,2.251]
[1723358828170,2.62483,2666.9,2666.4,2.251]
[1723358828349,2.62483,2666.9,2666.1,5.25102]
[1723358828549,2.62497,2666.7,2666.2,3.55]
[1723358828788,2.62497,2666.7,2666.2,6.17544]
[1723358829081,2.62495,2666.8,2666.2,6.17545]
[1723358829447,2.62483,2666.9,2666.2,6.17545]
[1723358830288,2.62483,2666.9,2666.2,8.80083]
[1723358831082,2.62468,2667.0,2666.2,7.280563]
[1723358831464,2.62461,2667.1,2666.4,2.62518]
[1723358831694,7.3,2667.4,2666.8,2.6248]
[1723358831850,7.3,2667.4,2666.9,2.69966221]
[1723358832050,2.62379,2667.9,2667.0,5.251]
[1723358832251,2.62379,2667.9,2667.1,0.07497473]
[1723358832776,2.62379,2667.9,2667.3,2.62436]
[1723358832962,2.62379,2667.9,2667.5,2.62416]
[1723358832963,1.25474,2667.9,2667.5,2.62416]
[1723358833168,7.3,2668.0,2667.6,4.95003524]
[1723358833370,2.62359,2668.1,2667.6,2.32596524]
[1723358833568,2.62371,2668.0,2667.6,2.32596524]
[1723358833770,2.62371,2668.0,2667.6,2.251]
[1723358833965,2.62371,2668.0,2667.1,3.0]
[1723358833966,2.62406,2667.7,2667.2,2.251]
[1723358834160,0.59969094,2668.0,2667.2,2.251]
[1723358834356,3.22342094,2668.0,2667.1,3.0]
[1723358834562,5.24851,2667.5,2667.1,3.0]
[1723358834762,2.62425,2667.5,2667.1,3.0]
[1723358835990,2.62459,2667.1,2666.7,2.251]
[1723358836182,2.887049,2667.1,2666.7,2.251]
[1723358836378,2.62437,2667.3,2666.7,2.251]
[1723358836579,2.62422,2667.5,2666.8,2.6248]
[1723358836782,3.15654009,2667.5,2666.8,2.6248]
[1723358836982,3.15654009,2667.5,2666.7,4.87589]
[1723358837181,2.62433,2667.4,2666.7,4.87589]
[1723358837493,2.62433,2667.4,2666.8,3.0]
[1723358837791,2.62444,2667.3,2666.8,3.0]
[1723358837995,2.62448,2667.2,2666.7,2.251]
[1723358838197,2.62444,2667.3,2666.6,3.0]
[1723358838198,2.62459,2667.1,2666.6,3.0]
[1723358838394,2.62459,2667.1,2666.3,4.87631]
[1723358838395,2.62483,2666.9,2666.3,4.87631]
[1723358838690,2.887079,2667.1,2666.3,4.87629]
[1723358839264,2.887079,2667.1,2666.5,2.62509]
[1723358839459,0.262459,2667.1,2666.5,2.62509]
[1723358839699,2.887069,2667.1,2666.5,5.25018]
[1723358840076,2.62461,2667.1,2666.5,2.62509]
[1723358840464,2.62461,2667.1,2666.3,3.0]
[1723358840665,2.62461,2667.1,2666.0,5.25118]
[1723358840666,2.62506,2666.6,2666.0,5.25118]
[1723358840869,0.07496094,2666.8,2666.1,0.0750068]
[1723358841065,2.62477,2666.9,2666.1,0.0750068]
[1723358841289,2.62477,2666.9,2666.2,2.70039081]
[1723358841487,2.62477,2666.9,2666.4,2.62525]
[1723358841689,0.262461,2667.0,2666.4,2.62519]
[1723358841890,2.887141,2667.0,2666.4,2.62519]
[1723358843010,2.69945094,2667.2,2666.6,2.62497]
[1723358843314,2.62444,2667.3,2666.6,2.62497]
[1723358844414,2.62444,2667.3,2666.6,5.24997]
[1723358844631,3.18162801,2667.3,2666.6,2.66045247]
[1723358844781,4.98574,2667.8,2667.0,2.62465]
[1723358844782,2.6241,2667.6,2667.0,2.62465]
[1723358845169,2.6241,2667.6,2667.0,2.62459]
[1723358846302,2.62403,2667.7,2667.1,4.99879]
[1723358846508,2.69899094,2667.7,2667.1,4.99879]
[1723358847476,0.07496094,2667.8,2667.2,2.62438]
[1723358847692,0.07496094,2667.8,2667.3,2.62436]
[1723358847895,2.69875094,2667.9,2667.3,2.62436]
[1723358848314,2.69875094,2667.9,2667.2,5.24878]
[1723358848713,5.32261094,2667.9,2667.2,2.62438]
[1723358849002,2.69875094,2667.9,2667.2,2.69935382]
[1723358849234,2.3618,2668.1,2667.2,0.84606118]
[1723358849405,7.3,2668.5,2667.7,2.62397]
[1723358849609,7.3,2668.5,2667.7,2.69893117]
[1723358849610,2.62336,2668.4,2667.7,2.69893117]
[1723358849788,3.615726,2668.3,2667.7,2.69893117]
[1723358849982,2.6235,2668.2,2667.6,2.44926122]
[1723358850211,5.24708,2668.2,2667.6,2.44926122]
[1723358850409,0.07496094,2668.2,2667.6,2.3743]
[1723358850612,2.62375,2668.0,2667.2,5.3743]
[1723358850817,2.62401,2667.7,2667.2,5.3743]
[1723358850991,2.69884094,2667.8,2667.2,3.0]
[1723358851191,9.92351,2668.2,2667.5,2.62417]
[1723358851406,3.7151946,2668.1,2667.6,0.0749693]
[1723358851587,3.7151946,2668.1,2667.5,2.62417]
[1723358851909,3.7151946,2668.1,2667.6,0.07496536]
[1723358852809,7.3,2668.2,2667.6,0.07496536]
[1723358853013,7.3,2668.2,2667.7,2.62396]
[1723358854002,7.3,2668.2,2667.7,2.62391]
[1723358854681,2.62334,2668.4,2667.7,2.62391]
[1723358854682,5.24672,2668.4,2667.7,2.62391]
[1723358854879,2.6234,2668.3,2667.7,2.62391]
[1723358855411,2.6234,2668.3,2667.6,0.07496536]
[1723358855412,0.524674,2668.3,2667.4,2.69917387]
[1723358855616,0.07496094,2668.2,2667.4,2.69917387]
[1723358855820,2.62363,2668.1,2667.4,2.69917387]
[1723358856595,2.62363,2668.1,2667.5,2.62417]
[1723358856878,2.62371,2668.0,2667.3,4.9986]
[1723358857085,2.62371,2668.0,2667.4,5.62426]
[1723358858094,2.62395,2667.8,2667.4,3.0]
[1723358858302,3.39239209,2667.8,2667.3,3.0]
[1723358858503,2.62395,2667.8,2667.3,3.0]
[1723358859405,2.62395,2667.8,2667.2,2.62446]
[1723358859604,2.62395,2667.8,2667.3,3.0]
[1723358862796,2.624,2667.7,2667.3,3.0]
[1723358863144,2.62434,2667.4,2666.7,2.4424]
[1723358863350,0.07496094,2667.5,2666.7,2.4424]
[1723358863493,0.07496094,2667.6,2667.0,2.6246]
[1723358863839,0.07496094,2667.6,2667.1,2.4424]
[1723358863985,2.62392,2667.8,2667.1,2.4424]
[1723358863986,2.69895094,2667.7,2667.1,2.4424]
[1723358864318,2.62399,2667.7,2667.1,5.06695]
[1723358865744,2.62382,2667.9,2667.3,2.62437]
[1723358865889,2.69878094,2667.9,2667.3,2.62437]
[1723358866289,5.32265094,2667.9,2667.3,2.62437]
[1723358866523,5.32265094,2667.9,2667.1,3.237808]
[1723358866524,2.62391,2667.8,2667.1,5.862308]
[1723358866700,3.39235509,2667.8,2667.1,5.0669]
[1723358867753,2.62399,2667.7,2667.1,5.0669]
[1723358868251,2.62419,2667.5,2667.1,2.4424]
[1723358868413,2.62432,2667.4,2666.7,15.41727]
[1723358868729,2.62432,2667.4,2666.8,2.62486]
[1723358869032,2.62432,2667.4,2665.9,3.59414781]
[1723358869033,2.2926,2666.9,2665.9,2.62567]
[1723358869328,2.62513,2666.6,2665.9,2.62567]
[1723358869520,2.62526,2666.4,2665.7,5.06831]
[1723358869690,2.62536,2666.3,2665.7,5.06831]
[1723358869895,2.62536,2666.3,2665.7,5.83775]
[1723358870199,2.62546,2666.2,2665.7,2.4424]
[1723358870399,2.62546,2666.2,2665.1,2.6265]
[1723358870400,2.62572,2666.0,2665.4,2.4424]
[1723358870737,0.07496094,2666.0,2665.4,0.50687]
[1723358870898,2.62582,2665.9,2665.3,2.62627]
[1723358871095,2.62582,2665.9,2665.1,5.0689]
[1723358871096,2.62558,2666.1,2665.2,2.62637]
[1723358871295,0.07496094,2666.0,2665.4,2.62623]
[1723358872217,2.70054094,2666.1,2665.5,2.62613]
[1723358872418,2.70054094,2666.1,2665.5,2.62614]
[1723358872594,2.70054094,2666.1,2665.4,2.62623]
[1723358872995,2.62537,2666.3,2665.6,2.62598]
[1723358872996,0.07496094,2666.2,2665.6,2.62598]
[1723358873305,5.81278,2666.9,2666.0,2.62563]
[1723358873306,2.62496,2666.7,2666.0,2.62563]
[1723358873497,2.62496,2666.7,2666.1,2.70054758]
[1723358873693,2.85415,2666.8,2666.2,2.62544]
[1723358873927,2.62477,2666.9,2666.3,0.07500407]
[1723358874130,2.62477,2666.9,2666.3,2.70035407]
[1723358874306,2.2926,2667.0,2666.4,2.62525]
[1723358874493,2.62459,2667.1,2666.4,2.62525]
[1723358874696,5.24925,2667.1,2666.4,2.62517]
[1723358874897,2.62459,2667.1,2666.4,3.40196941]
[1723358875339,2.62459,2667.1,2666.4,3.47696666]
[1723358875741,2.62453,2667.2,2666.4,3.47696666]
[1723358876044,2.62441,2667.3,2666.6,2.62506]
[1723358876555,2.69937094,2667.3,2666.7,2.62496]
[1723358876836,2.69937094,2667.3,2666.7,0.07499091]
[1723358877037,2.69937094,2667.3,2666.7,2.62496]
[1723358877240,0.07496094,2667.2,2666.5,0.34769667]
[1723358877456,2.62463,2667.1,2666.4,2.62525]
[1723358877609,2.62467,2667.0,2666.4,2.62525]
[1723358877813,2.62463,2667.1,2666.4,2.62525]
[1723358878013,2.6247,2667.0,2666.4,2.62525]
[1723358878614,2.62504,2666.7,2666.0,5.62559]
[1723358878841,2.70006094,2666.6,2666.0,5.4424]
[1723358879212,5.32522094,2666.6,2666.0,3.0]
[1723358879754,2.62533,2666.4,2666.0,3.0]
[1723358879931,2.62533,2666.4,2665.8,5.62578]
[1723358880117,2.62533,2666.4,2665.8,6.132608]
[1723358880323,0.07496094,2666.3,2665.8,6.132608]
[1723358880518,0.07496094,2666.3,2665.8,3.0]
[1723358880719,0.07496094,2666.3,2665.5,2.6261]
[1723358880720,2.62563,2666.1,2665.5,2.6261]
[1723358880945,2.62576,2665.9,2665.4,0.575953]
[1723358881139,0.07496094,2666.0,2665.4,2.62624]
[1723358881459,0.07496094,2666.0,2665.3,2.62632]
[1723358881460,0.07496094,2666.2,2665.7,2.62594]
[1723358881813,2.4418,2666.4,2665.7,3.385712]
[1723358881814,2.51676094,2666.4,2665.7,3.385712]
[1723358882012,2.51676094,2666.4,2665.6,2.3457]
[1723358882013,2.62547,2666.2,2665.6,2.3457]
[1723358882314,2.62547,2666.2,2665.5,2.62608]
[1723358882315,0.07496094,2666.1,2665.5,2.62608]
[1723358883758,2.70055094,2666.1,2665.5,2.62608]
[1723358885658,2.62568,2666.0,2665.4,2.62623]
[1723358885862,2.62568,2666.0,2665.5,3.0]
[1723358887852,0.60756303,2666.1,2665.5,5.62611]
[1723358888253,0.07496094,2666.1,2665.5,5.62611]
[1723358888463,2.62506,2666.7,2665.8,2.62576]
[1723358888663,2.62517,2666.5,2665.8,4.97146]
[1723358888867,2.62506,2666.7,2665.9,0.57216089]
[1723358889182,2.62479,2666.9,2666.2,2.62544]
[1723358889479,2.4418,2667.1,2665.8,2.3457]
[1723358889480,2.62476,2667.0,2666.3,7.67128877]
[1723358889677,5.06639,2667.1,2666.4,0.07500137]
[1723358889842,2.4418,2667.1,2666.5,2.62515]
[1723358890042,2.4418,2667.1,2666.5,5.25025]
[1723358890244,2.69944094,2667.2,2666.6,2.62503]
[1723358890479,5.14109094,2667.4,2666.7,2.62487]
[1723358890680,5.06582,2667.7,2666.9,4.9704]
[1723358890850,2.62418,2667.5,2666.9,4.97039]
[1723358891176,2.62437,2667.3,2666.9,2.3457]
[1723358891375,2.62437,2667.3,2666.7,2.62493]
[1723358891376,2.62465,2667.1,2666.5,4.97082]
[1723358891556,0.07496094,2667.0,2666.6,3.0]
[1723358891762,2.69976094,2666.9,2666.3,2.62534]
[1723358891952,3.23318925,2667.1,2666.3,2.62534]
[1723358892154,2.62467,2667.0,2666.4,5.62519]
[1723358893187,2.62467,2667.0,2666.4,3.0]
[1723358893486,3.48161823,2667.0,2666.4,3.0]
[1723358893689,2.62479,2666.9,2666.4,3.0]
[1723358894038,2.62495,2666.8,2666.1,7.97122]
[1723358894202,2.69998094,2666.7,2666.2,3.0]
[1723358894793,2.62507,2666.6,2666.2,3.0]
[1723358895098,0.07496094,2666.7,2666.1,7.97124]
[1723358895690,2.62507,2666.6,2666.1,7.97124]
[1723358896459,2.97311982,2666.8,2666.1,7.97117]
[1723358896651,2.97311982,2666.8,2666.2,2.62545]
[1723358897448,7.3,2667.0,2666.5,2.62515]
[1723358897654,7.3,2667.0,2666.4,4.97094]
[1723358897655,9.92469,2667.0,2666.4,4.97094]
[1723358898066,9.92469,2667.0,2666.4,2.3457]
[1723358898267,10.63499052,2667.0,2666.4,2.3457]
[1723358898498,2.62478,2666.9,2666.3,2.62533]
[1723358898794,2.62497,2666.7,2666.2,2.3457]
[1723358898963,2.62497,2666.7,2666.2,3.0]
[1723358898964,2.69993094,2666.7,2666.2,3.0]
[1723358900068,2.62497,2666.7,2666.2,3.0]
[1723358900261,2.62478,2666.9,2666.3,2.62527]
[1723358900577,8.01030052,2667.0,2666.4,4.94565]
[1723358901598,8.01030052,2667.0,2666.5,2.62516]
[1723358901785,7.3,2667.0,2666.5,2.62516]
[1723358902299,5.24926,2667.1,2666.5,2.62516]
[1723358902467,0.07496094,2667.0,2666.5,2.62516]
[1723358902898,2.69957094,2667.1,2666.5,2.62516]
[1723358904001,2.62461,2667.1,2666.5,2.62516]
[1723358904195,3.88700809,2667.1,2666.5,2.62516]
[1723358904393,0.07496094,2667.0,2666.4,2.3204]
[1723358904571,2.62482,2666.9,2666.3,2.62527]
[1723358904997,0.07496094,2666.8,2666.2,3.0]
[1723358905403,2.62506,2666.6,2666.2,3.0]
[1723358905590,2.62504,2666.7,2666.1,2.3204]
[1723358906114,0.07496094,2666.8,2666.1,4.94588]
[1723358906420,2.6248,2666.9,2666.1,4.94588]
[1723358906421,2.6248,2666.9,2666.4,2.62525]
[1723358906640,2.69963094,2667.0,2666.4,2.62525]
[1723358906776,0.07496094,2667.2,2666.7,2.62496]
[1723358906975,9.92439,2667.3,2666.6,2.62496]
[1723358907416,9.92439,2667.3,2666.5,0.07499247]
[1723358907417,9.92439,2667.3,2666.7,2.62495]
[1723358907702,9.92439,2667.3,2666.5,0.07499247]
[1723358907703,7.3,2667.3,2666.9,7.56983]
[1723358908002,7.3,2667.3,2666.9,4.94509]
[1723358908208,2.62422,2667.5,2666.9,4.94509]
[1723358909203,5.098042,2667.5,2666.9,4.94509]
[1723358909371,0.07496094,2667.5,2667.0,2.62466]
[1723358909576,2.62429,2667.4,2666.9,2.3204]
[1723358909777,7.3,2667.6,2667.0,2.6246]
[1723358909974,7.3,2667.6,2667.1,2.62455]
[1723358910177,0.07496094,2667.5,2667.1,2.62455]
[1723358910505,0.07496094,2667.5,2666.9,7.56982]
[1723358910874,0.07496094,2667.5,2666.9,4.94509]
[1723358911098,0.07496094,2667.5,2666.9,7.56978]
[1723358911494,0.07496094,2667.5,2667.0,2.62466]
[1723358911906,7.3,2667.6,2667.1,2.62453]
[1723358912290,7.3,2667.6,2667.3,2.62435]
[1723358913877,7.3,2667.6,2667.4,2.3204]
[1723358914084,2.62369,2668.0,2667.4,4.9446]
[1723358915083,2.62369,2668.0,2667.4,2.3204]
[1723358915279,5.0563,2668.2,2667.6,2.62402]
[1723358915513,7.3,2668.4,2667.9,4.94415]
[1723358916012,5.0559,2668.6,2667.9,4.94415]
[1723358916214,7.772784,2668.6,2667.9,5.01909194]
[1723358916734,7.772784,2668.6,2668.0,2.62367]
[1723358917196,2.6232,2668.5,2668.0,2.62367]
[1723358917385,7.772784,2668.6,2668.1,0.07494791]
[1723358917587,5.339984,2668.6,2668.1,0.07494791]
[1723358917790,5.339984,2668.6,2668.0,5.32223114]
[1723358918392,5.41494494,2668.6,2668.0,2.69856114]
[1723358918915,2.62336,2668.4,2668.0,0.07495114]
[1723358919116,2.62336,2668.4,2667.9,2.3204]
[1723358919282,2.62336,2668.4,2667.6,4.94444]
[1723358919283,2.62352,2668.2,2667.6,4.94444]
[1723358919623,2.62352,2668.2,2667.4,5.62423]
[1723358919624,0.07496094,2668.1,2667.3,2.3204]
[1723358919798,5.24791,2667.8,2667.1,9.97456]
[1723358919981,5.24791,2667.8,2667.1,2.62456]
[1723358919982,5.32287094,2667.8,2667.1,2.62456]
[1723358920184,2.62401,2667.7,2667.1,3.381516]
[1723358920800,2.69891094,2667.8,2667.1,6.006016]
[1723358921016,2.69891094,2667.8,2667.1,0.756956]
[1723358921017,2.69888094,2667.8,2667.1,0.756956]
[1723358921319,2.4328,2667.9,2666.8,2.62485]
[1723358921320,2.62434,2667.4,2666.8,2.62485]
[1723358921820,2.62438,2667.3,2666.7,2.2775]
[1723358921992,2.62434,2667.4,2666.7,2.2775]
[1723358921993,2.62434,2667.4,2666.7,5.392711]
[1723358922616,2.62434,2667.4,2666.7,5.392651]
[1723358922811,0.07496094,2667.5,2666.9,2.62468]
[1723358922990,2.69908094,2667.6,2666.9,2.62468]
[1723358923421,2.62467,2667.0,2666.5,3.0]
[1723358923598,2.62467,2667.0,2666.4,2.2775]
[1723358923599,2.62467,2667.0,2666.4,5.2775]
[1723358923930,2.62458,2667.1,2666.5,2.62513]
[1723358924224,2.62458,2667.1,2666.6,3.0]
[1723358925591,4.93982,2667.3,2666.6,5.62504]
[1723358925811,4.93982,2667.3,2666.7,0.05128066]
[1723358926008,2.62449,2667.2,2666.7,0.05128066]
[1723358926213,2.62457,2667.1,2666.6,3.790275]
[1723358926424,2.62457,2667.1,2666.4,2.2775]
[1723358926794,2.62457,2667.1,2666.4,4.90275]
[1723358927012,5.24923,2667.1,2666.4,4.90275]
[1723358927404,2.62471,2667.0,2666.4,4.90275]
[1723358927717,2.62471,2667.0,2666.5,3.0]
[1723358931222,2.62504,2666.7,2666.1,2.2775]
[1723358931733,2.62512,2666.6,2666.1,2.2775]
[1723358931913,2.62521,2666.5,2666.1,3.0]
[1723358932111,2.62521,2666.5,2665.9,3.0]
[1723358932112,2.70017094,2666.5,2665.9,3.0]
[1723358932312,2.70017094,2666.5,2665.9,3.790328]
[1723358933300,2.62521,2666.5,2665.9,3.790328]
[1723358934328,2.62526,2666.4,2665.9,3.790328]
[1723358935226,2.62526,2666.4,2665.6,2.626]
[1723358935399,2.62526,2666.4,2665.8,2.62579]
[1723358936008,2.62538,2666.3,2665.7,3.17594]
[1723358936196,9.6154,2666.8,2665.5,9.6275]
[1723358936197,0.07496094,2666.2,2665.5,2.2775]
[1723358936397,2.62566,2666.0,2665.5,2.2775]
[1723358936605,2.62576,2665.9,2665.3,2.62633]
[1723358936906,2.62566,2666.0,2665.4,1.225383]
[1723358938029,2.70062094,2666.0,2665.4,3.851563]
[1723358938194,2.62581,2665.9,2665.5,3.0]
[1723358938528,2.62581,2665.9,2665.3,3.0]
[1723358939558,2.62592,2665.8,2665.3,3.0]
[1723358940908,4.88952,2665.8,2665.3,3.0]
[1723358941114,4.88952,2665.8,2665.2,3.0]
[1723358941833,2.62601,2665.7,2665.2,3.0]
[1723358942034,2.62601,2665.7,2665.1,3.506197]
[1723358942240,2.62611,2665.6,2665.1,0.506197]
[1723358942528,2.62615,2665.5,2665.1,0.506197]
[1723358942752,2.62615,2665.5,2664.9,2.4355]
[1723358942753,2.6263,2665.4,2664.9,2.4355]
[1723358943109,0.07496094,2665.5,2664.9,5.06222]
[1723358943304,0.07496094,2665.5,2664.9,5.06223]
[1723358943544,4.88948,2665.8,2665.0,2.69385957]
[1723358943745,7.3,2666.0,2665.3,2.4355]
[1723358943911,7.3,2666.0,2665.8,2.4355]
[1723358944251,2.62536,2666.3,2665.8,2.4355]
[1723358944559,5.32541094,2666.5,2665.8,5.06133]
[1723358944758,5.13806294,2666.5,2665.9,2.62574]
[1723358945114,2.62527,2666.4,2665.9,2.62574]
[1723358945417,2.70023094,2666.4,2665.9,2.62574]
[1723358945620,2.62527,2666.4,2665.9,2.62574]
[1723358945931,7.3,2666.6,2666.0,2.4355]
[1723358946129,2.62477,2666.9,2666.1,0.03753339]
[1723358946440,2.62477,2666.9,2666.2,2.62538]
[1723358946644,5.098711,2666.9,2666.2,2.62538]
[1723358946812,2.62496,2666.7,2666.1,3.17555]
[1723358947438,2.62508,2666.6,2666.1,0.55]
[1723358948946,2.62496,2666.7,2666.1,0.55]
[1723358949311,5.25001,2666.7,2666.1,0.55]
[1723358949529,2.62496,2666.7,2666.1,0.55]
[1723358949928,2.62496,2666.7,2666.1,3.17549]
[1723358950128,0.07496094,2666.8,2666.2,2.62544]
[1723358950341,2.69976094,2666.9,2666.2,2.62544]
[1723358950647,7.3,2667.0,2666.5,5.06058]
[1723358950949,2.62461,2667.1,2666.5,5.829154]
[1723358952347,2.69964094,2667.0,2666.5,2.4355]
[1723358952541,2.62503,2666.7,2666.0,5.62558]
[1723358952846,2.62503,2666.7,2666.0,9.358638]
[1723358953816,2.62503,2666.7,2666.1,0.55]
[1723358954018,2.62503,2666.7,2666.1,3.55]
[1723358954415,2.62503,2666.7,2666.1,6.17554]
[1723358954911,2.69991094,2666.8,2666.1,6.17554]
[1723358955116,2.69991094,2666.8,2666.1,7.4289578]
[1723358955315,5.32485094,2666.8,2666.1,7.4289578]
[1723358955717,2.69990094,2666.8,2666.1,7.4289578]
[1723358955918,5.32485094,2666.8,2666.1,7.4289578]
[1723358956437,5.32486094,2666.8,2666.1,7.4289578]
[1723358956848,2.62498,2666.7,2666.1,7.4289578]
[1723358957841,7.3,2667.0,2666.1,7.4289578]
[1723358957842,7.3,2667.0,2666.5,5.06057]
[1723358958041,7.3,2667.0,2666.6,0.07499233]
[1723358958232,2.62463,2667.1,2666.5,2.4355]
[1723358958626,2.62463,2667.1,2666.5,5.06064]
[1723358959037,2.62467,2667.0,2666.5,2.4355]
[1723358959436,2.62451,2667.2,2666.5,2.4355]
[1723358959437,5.24904,2667.2,2666.5,5.06064]
[1723358959861,5.32400094,2667.2,2666.5,5.06064]
[1723358960356,2.69947094,2667.2,2666.6,2.62504]
[1723358960564,2.62451,2667.2,2666.6,6.018614]
[1723358960770,2.62451,2667.2,2666.6,3.4137901]
[1723358961272,0.07496094,2667.1,2666.5,2.4355]
[1723358961469,2.62478,2666.9,2666.5,2.4355]
[1723358962026,2.62478,2666.9,2666.2,3.87445378]
[1723358962027,2.62494,2666.8,2666.3,3.0]
[1723358962227,2.62502,2666.7,2666.3,3.0]
[1723358962527,2.62506,2666.6,2666.1,2.8567]
[1723358962753,2.62506,2666.6,2666.2,3.0]
[1723358963527,2.62506,2666.6,2666.1,2.3067]
[1723358963731,5.25065,2666.4,2665.8,12.2825]
[1723358964029,2.62532,2666.4,2665.9,3.0]
[1723358964969,2.9448421,2666.6,2666.0,2.62558]
[1723358964970,2.70006094,2666.6,2666.0,2.62558]
[1723358965261,2.70006094,2666.6,2666.1,2.3067]
[1723358966962,5.32520094,2666.6,2666.1,2.3067]
[1723358967157,2.70006094,2666.6,2666.1,2.3067]
[1723358967462,2.70006094,2666.6,2666.0,2.62563]
[1723358967463,4.89928,2666.5,2665.8,2.3067]
[1723358967637,2.62543,2666.3,2665.6,2.3067]
[1723358967839,2.62562,2666.1,2665.6,2.3067]
[1723358968050,2.62567,2666.0,2665.6,2.3067]
[1723358968255,2.62562,2666.1,2665.6,2.3067]
[1723358968631,2.62562,2666.1,2665.6,5.3067]
[1723358969153,2.62562,2666.1,2665.6,7.93274]
[1723358969760,2.6254,2666.3,2665.7,2.62595]
[1723358969933,2.70022094,2666.4,2665.6,8.988621]
[1723358970136,2.70022094,2666.4,2665.8,2.62579]
[1723358970340,6.25042609,2666.5,2665.9,2.62574]
[1723358970582,3.62518609,2666.5,2666.0,2.3067]
[1723358970731,0.07496094,2666.6,2666.0,4.93234]
[1723358970935,7.3,2666.7,2666.1,2.62548]
[1723358971140,9.92499,2666.7,2666.1,2.62548]
[1723358971579,9.92499,2666.7,2666.1,5.25096]
[1723358971790,7.3,2666.7,2666.2,2.62544]
[1723358972083,7.3,2666.7,2666.3,2.3067]
[1723358972435,7.3,2666.7,2666.4,2.62519]
[1723358972749,14.81469,2667.0,2666.4,2.62519]
[1723358972951,2.69977094,2666.9,2666.3,4.93203]
[1723358976082,2.62487,2666.8,2666.3,4.93203]
[1723358976394,2.62487,2666.8,2666.1,2.62551]
[1723358976395,2.62504,2666.7,2666.1,2.62551]
[1723358977005,5.25009,2666.7,2666.1,2.62551]
[1723358977670,2.62504,2666.7,2666.1,2.62551]
[1723358978705,2.612307,2666.7,2666.1,2.62551]
[1723358979779,2.62512,2666.6,2666.0,2.3067]
[1723358979983,2.62512,2666.6,2666.0,5.799942]
[1723358980174,2.62512,2666.6,2666.0,8.425582]
[1723358980970,2.62512,2666.6,2666.0,5.799942]
[1723358981878,2.62512,2666.6,2666.0,8.425532]
[1723358982085,2.62512,2666.6,2666.1,1.1051212]
[1723358982685,2.62512,2666.6,2666.1,3.7306612]
[1723358982895,2.70019094,2666.5,2666.1,1.1051212]
[1723358983107,2.70019094,2666.5,2666.0,3.493242]
[1723358983108,2.70019094,2666.5,2666.0,3.0]
[1723358983320,2.62536,2666.3,2665.8,3.0]
[1723358983481,5.32542094,2666.5,2665.8,5.62584]
[1723358983680,5.32542094,2666.5,2665.9,1.05637]
[1723358984587,2.70019094,2666.5,2665.9,3.68209]
[1723358984807,0.07496094,2666.6,2666.0,5.62558]
[1723358984994,0.07496094,2666.6,2666.0,3.293789]
[1723358985216,2.70010094,2666.6,2666.0,3.293789]
[1723358985931,2.62518,2666.5,2666.0,0.668209]
[1723358986298,2.62537,2666.3,2666.0,3.0]
[1723358986489,2.62537,2666.3,2665.9,1.05637]
[1723358988799,0.07496094,2666.4,2665.9,1.05637]
[1723358989089,2.70029094,2666.4,2665.9,1.05637]
[1723358990322,2.62539,2666.3,2665.9,1.05637]
[1723358991117,0.07496094,2666.2,2665.5,2.312]
[1723358991634,2.62577,2665.9,2665.5,2.312]
[1723358991831,2.62572,2666.0,2665.5,2.312]
[1723358992195,2.70046094,2666.2,2665.5,4.93811]
[1723358992196,5.32601094,2666.2,2665.5,4.93811]
[1723358992429,2.62558,2666.1,2665.5,5.694539]
[1723358992636,0.07496094,2666.0,2665.5,5.694539]
[1723358992930,0.07496094,2666.0,2665.5,3.068429]
[1723358993495,2.70064094,2666.0,2665.5,3.068429]
[1723358993734,2.62568,2666.0,2665.5,3.068429]
[1723358994004,0.07496094,2666.1,2665.8,2.312]
[1723358994208,2.914427,2666.5,2665.9,2.62572]
[1723358994412,2.914427,2666.5,2666.0,5.62561]
[1723358994610,2.914427,2666.5,2666.0,3.0]
[1723358995537,0.07496094,2666.4,2665.7,2.62588]
[1723358995712,0.07496094,2666.4,2665.7,3.17661409]
[1723358996029,2.62558,2666.1,2665.5,4.93806]